bitfinex/quotes_SOLUSD_20260228
["timestamp","ask_amount","ask_price","bid_price","bid_amount"]
[1772303608089,0.47838092,81.643,81.611,0.45884388]
[1772303608990,0.47838092,81.639,81.606,0.45884388]
[1772303609687,0.47838092,81.639,81.603,42.89057999]
[1772303609688,0.47838092,81.639,81.611,0.45884388]
[1772303611988,0.47838092,81.637,81.612,12.25310003]
[1772303615205,0.47838092,81.637,81.612,12.71194391]
[1772303616096,0.47838092,81.637,81.613,0.45884388]
[1772303619582,0.47838092,81.635,81.614,12.25279976]
[1772303620705,0.47838092,81.633,81.61,0.45884388]
[1772303621501,0.47838092,81.633,81.604,0.45884388]
[1772303622813,0.47838092,81.629,81.605,12.71299497]
[1772303625505,0.49997813,81.649,81.611,0.45762517]
[1772303627405,0.45744529,81.639,81.613,0.47894961]
[1772303627704,0.45744529,81.639,81.612,12.25310003]
[1772303634020,0.45744529,81.637,81.608,0.47894961]
[1772303634520,0.45744529,81.655,81.621,0.47894961]
[1772303635508,0.45744529,81.667,81.631,0.47894961]
[1772303636020,0.45744529,81.665,81.633,0.47894961]
[1772303637207,0.45744529,81.659,81.632,12.250098]
[1772303637591,0.45744529,81.659,81.633,0.47894961]
[1772303638224,0.45744529,81.659,81.634,12.24979787]
[1772303638919,0.45744529,81.658,81.634,12.24979787]
[1772303640712,0.45744529,81.649,81.627,12.25084837]
[1772303640918,0.45744529,81.649,81.627,12.72979798]
[1772303641120,0.45744529,81.649,81.627,12.25084837]
[1772303643333,5.99938112,81.64,81.615,0.47894961]
[1772303643509,5.99938112,81.64,81.611,12.25325017]
[1772303643510,0.45744529,81.639,81.611,9.45712907]
[1772303643825,0.45744529,81.639,81.612,0.47894961]
[1772303645621,0.45744529,81.637,81.612,0.47894961]
[1772303645820,0.45744529,81.637,81.613,12.25294989]
[1772303646729,6.45682641,81.62,81.594,0.47894961]
[1772303646914,0.45744529,81.619,81.594,0.47894961]
[1772303647911,0.45744529,81.617,81.586,0.47894961]
[1772303648110,0.45744529,81.609,81.586,0.47894961]
[1772303648314,48.98766729,81.654,81.586,0.47894961]
[1772303648512,5.99938112,81.65,81.611,0.47894961]
[1772303649003,5.99938112,81.66,81.621,0.47894961]
[1772303649208,5.99938112,81.67,81.631,0.47894961]
[1772303649511,5.99938112,81.66,81.631,0.47894961]
[1772303649706,30.60987107,81.673,81.631,12.25011763]
[1772303649912,5.99938112,81.66,81.632,0.47894961]
[1772303650425,0.06998318,81.688,81.632,0.47894961]
[1772303650613,5.99938112,81.71,81.671,0.47894961]
[1772303650821,0.06998318,81.711,81.681,0.47894961]
[1772303651138,5.99938112,81.72,81.681,0.47894961]
[1772303652029,18.23629985,81.72,81.691,0.47894961]
[1772303653826,18.23629985,81.72,81.693,0.47894961]
[1772303654035,0.06998318,81.719,81.693,0.47894961]
[1772303654332,48.82856612,81.72,81.672,30.60990378]
[1772303654333,5.99938112,81.71,81.684,0.47894961]
[1772303654710,0.06998318,81.712,81.684,0.47894961]
[1772303655915,0.06998318,81.712,81.685,12.24214972]
[1772303656729,0.06998318,81.712,81.684,0.47894961]
[1772303658439,0.06998318,81.712,81.686,0.4788666]
[1772303658817,12.23691873,81.72,81.691,0.4788666]
[1772303660437,0.06998318,81.727,81.691,0.4788666]
[1772303660741,0.06998318,81.719,81.685,0.4788666]
[1772303663121,0.06998318,81.718,81.687,0.4788666]
[1772303664319,0.1,81.73,81.701,0.4788666]
[1772303664634,12.23555898,81.729,81.701,0.4788666]
[1772303664821,12.23555898,81.729,81.686,42.84699948]
[1772303664822,5.99938112,81.71,81.686,0.4788666]
[1772303665019,0.06998318,81.712,81.686,0.4788666]
[1772303665630,5.99938112,81.71,81.686,0.4788666]
[1772303666335,12.23855389,81.709,81.686,0.4788666]
[1772303667022,42.83493862,81.709,81.686,0.4788666]
[1772303668237,42.9049218,81.709,81.686,0.4788666]
[1772303668538,0.06998318,81.708,81.676,0.4788666]
[1772303668833,5.99938112,81.7,81.676,0.4788666]
[1772303669033,42.83493862,81.709,81.676,0.4788666]
[1772303669034,5.99938112,81.69,81.676,0.4788666]
[1772303669236,5.99938112,81.7,81.676,0.4788666]
[1772303669442,0.46253757,81.689,81.656,18.1515488]
[1772303669655,5.99938112,81.68,81.656,18.1515488]
[1772303670348,12.243049,81.679,81.656,18.1515488]
[1772303671036,42.85067152,81.679,81.656,18.1515488]
[1772303672451,43.31320909,81.679,81.656,18.1515488]
[1772303673041,42.85067152,81.679,81.657,0.4788666]
[1772303676044,12.243049,81.679,81.657,0.4788666]
[1772303676252,12.24050584,81.696,81.661,0.4788666]
[1772303676441,0.46253757,81.695,81.661,0.4788666]
[1772303676647,12.24050584,81.696,81.661,0.4788666]
[1772303677933,5.99938112,81.69,81.662,0.4788666]
[1772303679142,12.24155026,81.689,81.662,0.4788666]
[1772303680250,12.24155026,81.689,81.664,0.4788666]
[1772303681352,0.46253757,81.679,81.64,5.99938112]
[1772303681539,0.46253757,81.679,81.641,12.24874756]
[1772303682459,43.3079635,81.689,81.65,5.99938112]
[1772303682755,0.46253757,81.688,81.65,5.99938112]
[1772303683453,43.31950619,81.687,81.652,0.4788666]
[1772303684244,0.47303124,81.686,81.652,0.4788666]
[1772303684745,0.47303124,81.679,81.652,0.4788666]
[1772303685543,43.32422739,81.678,81.652,0.4788666]
[1772303685959,12.2431989,81.678,81.653,12.24694744]
[1772303686162,12.24034423,81.698,81.661,0.48333882]
[1772303686363,12.24034423,81.698,81.671,0.49036259]
[1772303686744,12.23936803,81.704,81.671,0.49036259]
[1772303687257,12.71688097,81.704,81.671,0.49036259]
[1772303687451,43.31513809,81.704,81.671,0.49036259]
[1772303687658,0.47751294,81.703,81.671,0.49036259]
[1772303687854,12.71711539,81.702,81.671,0.49036259]
[1772303688059,12.71711539,81.702,81.673,0.49036259]
[1772303688559,0.47751294,81.701,81.673,0.49036259]
[1772303689264,5.99938112,81.7,81.673,0.49036259]
[1772303689457,6.47689406,81.7,81.673,0.49036259]
[1772303689660,0.47751294,81.7,81.673,0.49036259]
[1772303689853,12.24005189,81.699,81.673,0.49036259]
[1772303690055,0.47751294,81.698,81.673,0.49036259]
[1772303690864,0.47751294,81.689,81.663,0.49036259]
[1772303691363,12.23960245,81.702,81.671,0.49036259]
[1772303691662,0.47751294,81.701,81.671,0.49036259]
[1772303692548,0.47751294,81.699,81.673,0.49036259]
[1772303695148,30.59943149,81.701,81.673,0.49036259]
[1772303695149,12.71771465,81.698,81.673,0.49036259]
[1772303695850,0.47751294,81.697,81.673,0.49036259]
[1772303697163,12.71801431,81.696,81.673,0.49036259]
[1772303697365,0.47751294,81.695,81.673,0.49036259]
[1772303699372,12.24080103,81.694,81.673,0.49036259]
[1772303700066,0.47751294,81.695,81.674,0.49036259]
[1772303700466,0.47751294,81.693,81.674,0.49036259]
[1772303700970,0.47751294,81.707,81.68,5.9918182]
[1772303701172,6.39727668,81.733,81.701,0.49036259]
[1772303701483,6.39727668,81.733,81.7,5.9918182]
[1772303701484,12.23539083,81.731,81.703,0.49036259]
[1772303702475,12.23539083,81.731,81.702,12.23960245]
[1772303702476,0.1,81.76,81.721,0.49036259]
[1772303702702,0.1,81.76,81.731,0.49036259]
[1772303703054,12.80849966,81.76,81.731,0.49036259]
[1772303703260,0.47751294,81.759,81.731,0.49036259]
[1772303703492,12.23121896,81.758,81.732,0.49036259]
[1772303703774,12.23106936,81.759,81.732,0.49036259]
[1772303703954,0.1,81.76,81.732,0.49036259]
[1772303704455,12.22874098,81.775,81.742,0.49036259]
[1772303705070,0.47751294,81.774,81.76,5.9918182]
[1772303705388,0.47751294,81.774,81.752,0.49036259]
[1772303705675,12.22897533,81.773,81.752,0.49036259]
[1772303706070,0.46019843,81.772,81.752,0.49036259]
[1772303706265,0.46019843,81.772,81.731,0.45791729]
[1772303706469,0.46019843,81.772,81.74,5.9918182]
[1772303707880,0.46019843,81.772,81.733,0.45791729]
[1772303707881,0.49223586,81.77,81.733,0.45791729]
[1772303708255,0.49223586,81.769,81.721,0.45804559]
[1772303708556,0.49223586,81.77,81.741,0.45804559]
[1772303709171,0.49223586,81.77,81.75,5.9918182]
[1772303709862,12.22957355,81.769,81.75,5.9918182]
[1772303710173,12.72069469,81.777,81.752,0.45804559]
[1772303710478,0.49223586,81.776,81.75,5.9918182]
[1772303710869,0.49223586,81.776,81.735,0.45804559]
[1772303711286,0.49223586,81.776,81.713,30.59467053]
[1772303711287,0.49223586,81.776,81.75,5.9918182]
[1772303711573,0.49223586,81.776,81.742,0.45804559]
[1772303711970,0.49223586,81.774,81.742,0.45804559]
[1772303712168,0.49223586,81.769,81.721,0.45804559]
[1772303713972,0.49223586,81.767,81.73,5.9918182]
[1772303714576,0.49223586,81.767,81.723,0.45804559]
[1772303715157,0.49223586,81.767,81.731,0.45804559]
[1772303715483,0.49223586,81.761,81.731,0.45804559]
[1772303715679,0.49223586,81.761,81.73,5.9918182]
[1772303716377,0.49062823,81.759,81.731,0.49736157]
[1772303716767,0.49062823,81.759,81.73,5.9918182]
[1772303716969,0.49062823,81.759,81.716,0.49736157]
[1772303717166,0.49062823,81.759,81.721,0.49736157]
[1772303717571,0.49062823,81.759,81.716,0.49736157]
[1772303717775,0.49062823,81.759,81.72,5.9918182]
[1772303718372,0.49062823,81.757,81.72,6.48917977]
[1772303718689,0.49062823,81.749,81.715,18.08951756]
[1772303719169,0.49062823,81.749,81.708,0.49736157]
[1772303719567,0.49062823,81.749,81.71,5.9918182]
[1772303719770,0.49062823,81.749,81.705,0.49736157]
[1772303720086,0.49062823,81.741,81.705,0.49736157]
[1772303720474,0.49062823,81.739,81.705,0.49736157]
[1772303720972,0.49062823,81.739,81.71,5.9918182]
[1772303721173,0.49062823,81.739,81.711,0.49736157]
[1772303723394,0.49062823,81.737,81.711,0.49736157]
[1772303723981,42.81974111,81.738,81.711,0.49736157]
[1772303724185,0.49062823,81.737,81.711,0.49736157]
[1772303724584,0.49062823,81.737,81.69,5.9918182]
[1772303725170,0.49062823,81.737,81.7,5.9918182]
[1772303725374,0.49062823,81.735,81.7,5.9918182]
[1772303725893,0.49062823,81.731,81.69,5.9918182]
[1772303726089,0.49062823,81.721,81.68,5.9918182]
[1772303726581,0.49062823,81.719,81.67,6.36674025]
[1772303726780,0.49062823,81.719,81.68,5.9918182]
[1772303727603,0.49062823,81.717,81.68,5.9918182]
[1772303730603,0.49062823,81.715,81.674,0.37492205]
[1772303731411,0.49062823,81.715,81.67,5.9918182]
[1772303731701,0.49062823,81.715,81.671,0.37492205]
[1772303731902,0.49062823,81.709,81.67,6.36674025]
[1772303732099,0.49062823,81.709,81.67,0.37492205]
[1772303732309,0.49062823,81.709,81.664,19.93279459]
[1772303732609,0.49062823,81.707,81.664,19.93279459]
[1772303732990,0.49062823,81.707,81.665,0.37492205]
[1772303733191,0.49062823,81.707,81.671,0.37492205]
[1772303735503,12.23900325,81.706,81.673,0.37492205]
[1772303735710,0.49062823,81.705,81.681,0.37492205]
[1772303737612,0.49062823,81.703,81.681,0.37492205]
[1772303737819,0.49062823,81.703,81.671,0.37492205]
[1772303740117,0.49062823,81.701,81.664,19.55787254]
[1772303740291,0.49062823,81.701,81.665,0.37492205]
[1772303742213,0.49062823,81.699,81.665,0.37492205]
[1772303743100,0.49062823,81.699,81.664,19.55787254]
[1772303743297,0.49062823,81.699,81.664,19.93279459]
[1772303744209,0.45830681,81.697,81.664,19.55787254]
[1772303745496,0.45830681,81.697,81.666,0.37492205]
[1772303745693,0.45830681,81.706,81.681,0.37492205]
[1772303747821,0.46636741,81.704,81.681,0.37492205]
[1772303748124,0.46636741,81.704,81.675,0.37492205]
[1772303749126,0.46636741,81.704,81.673,12.24393168]
[1772303749323,0.46636741,81.738,81.691,0.37492205]
[1772303749521,0.46636741,81.738,81.68,5.9918182]
[1772303749522,0.46636741,81.738,81.71,5.9918182]
[1772303749729,0.46636741,81.729,81.674,0.37492205]
[1772303749913,0.46636741,81.729,81.68,5.9918182]
[1772303750627,0.46636741,81.719,81.674,0.37492205]
[1772303751614,0.46636741,81.717,81.675,12.2436486]
[1772303752224,0.46636741,81.717,81.674,0.37492205]
[1772303752527,0.46636741,81.717,81.68,5.9918182]
[1772303753019,0.46636741,81.717,81.681,0.37492205]
[1772303753221,0.46636741,81.717,81.675,12.2436486]
[1772303753811,0.46636741,81.715,81.675,12.2436486]
[1772303754416,0.46636741,81.715,81.675,12.61857065]
[1772303754613,0.46636741,81.715,81.675,12.2436486]
[1772303754821,0.46636741,81.709,81.666,0.37492205]
[1772303755027,0.46636741,81.709,81.67,5.98945706]
[1772303755616,0.46636741,81.709,81.666,0.37492205]
[1772303755834,0.46636741,81.707,81.666,0.37492205]
[1772303756141,0.46636741,81.707,81.67,5.98945706]
[1772303756318,0.46636741,81.707,81.664,0.37492205]
[1772303756518,0.46636741,81.707,81.663,12.24539436]
[1772303756915,0.46636741,81.707,81.66,5.98945706]
[1772303757119,0.46636741,81.707,81.661,0.37492205]
[1772303758414,0.46636741,81.705,81.662,12.2455977]
[1772303759339,0.46636741,81.703,81.662,12.2455977]
[1772303759523,0.46636741,81.701,81.662,12.2455977]
[1772303759852,0.46636741,81.701,81.66,5.98945706]
[1772303760155,0.46636741,81.701,81.66,6.36437911]
[1772303760525,42.83965728,81.7,81.66,18.61015535]
[1772303760718,0.46636741,81.699,81.661,0.37492205]
[1772303760919,0.46636741,81.689,81.64,5.98945706]
[1772303761221,0.46636741,81.681,81.64,5.98945706]
[1772303761422,0.46636741,81.681,81.641,12.24871626]
[1772303762349,0.46636741,81.679,81.639,0.37492205]
[1772303762544,0.46636741,81.677,81.64,5.98945706]
[1772303762747,0.46636741,81.677,81.647,12.24770068]
[1772303762921,0.46636741,81.677,81.646,0.37492205]
[1772303763936,12.2431989,81.678,81.651,0.37492205]
[1772303764439,0.46636741,81.69,81.652,0.37492205]
[1772303764638,0.46636741,81.689,81.652,0.37492205]
[1772303764841,0.46636741,81.689,81.65,0.37492205]
[1772303765033,0.46636741,81.689,81.651,0.37492205]
[1772303765630,0.46636741,81.686,81.651,0.37492205]
[1772303766542,0.46636741,81.677,81.631,0.37492205]
[1772303767341,0.14216157,81.676,81.631,0.37492205]
[1772303767530,0.46636741,81.671,81.631,0.37492205]
[1772303768136,0.46636741,81.671,81.632,0.37492205]
[1772303768738,0.46636741,81.685,81.651,0.37492205]
[1772303769342,0.46636741,81.693,81.661,0.37492205]
[1772303769540,12.24005189,81.699,81.67,5.98945706]
[1772303769746,42.84018163,81.699,81.671,0.37492205]
[1772303770133,43.30654904,81.699,81.671,0.37492205]
[1772303770333,0.46636741,81.698,81.671,0.37492205]
[1772303770738,12.24035154,81.697,81.671,0.37492205]
[1772303771439,12.24035154,81.697,81.672,0.37492205]
[1772303773639,12.70671895,81.697,81.672,0.37492205]
[1772303775256,12.24035154,81.697,81.672,0.37492205]
[1772303776443,12.23981448,81.701,81.681,0.37492205]
[1772303776765,0.46210458,81.711,81.681,0.37492205]
[1772303776766,12.23840411,81.71,81.681,0.37492205]
[1772303777475,0.46210458,81.709,81.681,0.37492205]
[1772303780482,0.46210458,81.707,81.681,0.37492205]
[1772303782854,0.46210458,81.705,81.681,0.37492205]
[1772303785971,0.46210458,81.703,81.681,0.37492205]
[1772303786176,0.46210458,81.703,81.672,0.37492205]
[1772303787757,0.46210458,81.701,81.672,0.37492205]
[1772303789083,43.30176186,81.7,81.672,0.37492205]
[1772303789378,0.46210458,81.699,81.672,0.37492205]
[1772303789875,0.46210458,81.699,81.666,0.37492205]
[1772303791174,0.46210458,81.697,81.668,0.37492205]
[1772303793474,12.24050137,81.696,81.669,12.24454811]
[1772303793778,0.46210458,81.695,81.671,0.37492205]
[1772303794474,0.74400001,81.751,81.681,0.37492205]
[1772303794681,0.46210458,81.729,81.67,0.37492205]
[1772303794881,0.46210458,81.729,81.691,0.37492205]
[1772303795670,5.98945706,81.74,81.693,0.37492205]
[1772303795671,0.46210458,81.727,81.693,0.37492205]
[1772303796281,0.46210458,81.727,81.7,5.98945706]
[1772303796489,12.23513446,81.732,81.711,0.37492205]
[1772303796785,12.2324159,81.75,81.711,0.37492205]
[1772303796972,12.69452048,81.75,81.721,0.37492205]
[1772303797568,12.69452048,81.75,81.722,0.37492205]
[1772303798083,61.24001195,81.78,81.741,0.37492205]
[1772303798084,0.46210458,81.775,81.741,0.37492205]
[1772303798259,0.46210458,81.775,81.73,5.98945706]
[1772303798579,42.79827339,81.779,81.73,5.98945706]
[1772303798580,0.46210458,81.769,81.73,5.98945706]
[1772303798877,0.46210458,81.769,81.731,0.37492205]
[1772303799079,0.46210458,81.759,81.724,0.37492205]
[1772303799587,12.69212683,81.766,81.741,0.37492205]
[1772303799876,0.46210458,81.765,81.74,6.36437911]
[1772303800180,0.46210458,81.765,81.741,0.37492205]
[1772303800571,12.22822764,81.778,81.751,0.37492205]
[1772303800956,12.69033222,81.778,81.751,0.37492205]
[1772303801159,5.98945706,81.77,81.734,0.37492205]
[1772303801356,0.46210458,81.769,81.734,0.37492205]
[1772303801561,42.8040309,81.768,81.734,0.37492205]
[1772303801766,42.8040309,81.768,81.73,5.98945706]
[1772303801767,0.46210458,81.767,81.731,0.37492205]
[1772303802360,0.46210458,81.767,81.732,0.37492205]
[1772303802561,42.8040309,81.768,81.721,0.37492205]
[1772303802562,5.98945706,81.76,81.721,0.37492205]
[1772303802787,5.98945706,81.76,81.71,5.98945706]
[1772303802788,0.46210458,81.759,81.714,0.37492205]
[1772303803167,0.46210458,81.749,81.714,0.37492205]
[1772303803879,0.45508645,81.739,81.701,19.09264523]
[1772303804078,0.45508645,81.739,81.703,0.37492205]
[1772303804277,42.8145031,81.748,81.703,0.37492205]
[1772303804467,0.45508645,81.778,81.736,0.37492205]
[1772303804863,0.45508645,81.769,81.729,0.37492205]
[1772303805057,0.45508645,81.759,81.72,5.98945706]
[1772303805286,0.45508645,81.759,81.721,0.37492205]
[1772303806582,0.4669174,81.757,81.723,0.37492205]
[1772303806794,0.4669174,81.757,81.722,12.23660703]
[1772303806795,0.4669174,81.757,81.73,6.36437911]
[1772303806999,0.4669174,81.757,81.723,0.37492205]
[1772303807375,0.4669174,81.772,81.741,0.37492205]
[1772303807590,0.1,81.78,81.76,5.98945706]
[1772303807792,0.1,81.78,81.761,0.37492205]
[1772303807986,12.22807811,81.779,81.761,0.37492205]
[1772303808185,0.1,81.78,81.761,0.37492205]
[1772303808499,0.1,81.78,81.761,12.23062523]
[1772303808794,0.1,81.78,81.762,0.37492205]
[1772303809177,0.1,81.79,81.771,0.27492205]
[1772303809381,0.4669174,81.805,81.772,0.27492205]
[1772303809382,12.32494066,81.8,81.772,0.27492205]
[1772303810114,0.4669174,81.799,81.761,12.23077017]
[1772303810290,0.4669174,81.799,81.761,0.27492205]
[1772303810682,0.4669174,81.797,81.761,0.27492205]
[1772303811084,0.4669174,81.797,81.76,16.00313764]
[1772303811085,0.4669174,81.797,81.763,0.27492205]
[1772303812004,0.4669174,81.797,81.76,16.00313764]
[1772303812307,0.4669174,81.797,81.76,28.23392454]
[1772303813009,0.4669174,81.789,81.75,16.00313764]
[1772303813315,0.4669174,81.789,81.77,16.01103465]
[1772303813606,0.4669174,81.789,81.76,16.01103465]
[1772303814181,0.4669174,81.789,81.75,16.01103465]
[1772303814412,0.4669174,81.789,81.76,16.01103465]
[1772303816020,0.4669174,81.796,81.77,16.01103465]
[1772303816223,0.4669174,81.796,81.78,16.01103465]
[1772303816533,0.1,81.8,81.78,16.01103465]
[1772303816910,12.04814253,81.813,81.78,16.01103465]
[1772303817111,65.51690153,81.843,81.78,16.01103465]
[1772303817112,1e-08,81.842,81.801,0.28432314]
[1772303817310,12.2132384,81.879,81.824,0.28432314]
[1772303817512,16.01103465,81.86,81.81,16.01103465]
[1772303818238,12.21135411,81.891,81.84,0.48838093]
[1772303818453,42.7397394,81.891,81.86,16.01103465]
[1772303818638,1.33439164,81.892,81.854,0.48838093]
[1772303818821,48.81446887,81.943,81.866,0.48838093]
[1772303818822,12.20752332,81.917,81.866,0.48838093]
[1772303819021,16.01103465,81.9,81.86,16.01103465]
[1772303819333,0.4669174,81.889,81.85,16.01103465]
[1772303819533,0.4669174,81.889,81.84,16.49941558]
[1772303819732,16.01103465,81.88,81.84,16.01103465]
[1772303819936,0.4669174,81.877,81.84,16.01103465]
[1772303820363,0.4669174,81.877,81.85,16.01103465]
[1772303820521,0.4669174,81.916,81.852,0.48838093]
[1772303820716,0.4669174,81.916,81.89,16.01103465]
[1772303821054,0.4669174,81.916,81.863,0.48838093]
[1772303821265,0.4669174,81.916,81.88,16.01103465]
[1772303821548,6.38162287,81.958,81.915,0.48838093]
[1772303821731,0.4669174,81.965,81.95,16.01103465]
[1772303821930,0.4669174,81.965,81.881,31.09135292]
[1772303821931,0.4669174,81.954,81.92,16.01103465]
[1772303822128,0.4669174,81.954,81.91,16.01103465]
[1772303822459,0.4669174,81.954,81.906,12.20911776]
[1772303822460,0.4669174,81.954,81.92,16.01103465]
[1772303822753,0.4669174,81.939,81.89,16.01103465]
[1772303822945,0.4669174,81.939,81.9,16.01103465]
[1772303824138,0.4669174,81.929,81.891,12.21135411]
[1772303824355,0.4669174,81.929,81.9,16.01103465]
[1772303824741,0.4669174,81.929,81.892,0.48838093]
[1772303824940,43.1821411,81.938,81.892,0.48838093]
[1772303825156,0.4669174,81.937,81.892,0.48838093]
[1772303825332,30.50600216,81.952,81.901,0.48838093]
[1772303825333,0.4669174,81.947,81.901,0.48838093]
[1772303825574,6.70043277,82.003,81.941,0.48838093]
[1772303825744,61.55533365,82.069,81.894,3.69383402]
[1772303825745,0.4669174,82.007,81.947,0.48838093]
[1772303825949,0.4669174,82.007,81.902,15.34573376]
[1772303825950,0.4669174,82.007,81.989,4.87464409]
[1772303826131,12.18962175,82.037,81.991,0.73345869]
[1772303826442,201.12875896,82.037,81.989,4.87464409]
[1772303826747,3.69383402,82.034,81.991,0.73345869]
[1772303826947,16.01103465,82.0,81.958,0.73345869]
[1772303827152,3.69383402,82.034,81.991,0.73345869]
[1772303827352,42.66367614,82.037,81.991,0.73345869]
[1772303827523,16.01103465,82.02,81.991,0.73345869]
[1772303827950,237.66009569,82.05,81.961,0.73345869]
[1772303828153,188.91150407,82.049,81.981,0.73345869]
[1772303828346,16.01103465,82.03,81.991,0.73345869]
[1772303828531,0.2665413,81.999,81.935,0.14216157]
[1772303828730,0.2665413,81.999,81.934,16.93218712]
[1772303828731,0.2665413,82.019,81.934,16.93218712]
[1772303829031,0.2665413,82.024,81.96,16.01103465]
[1772303829231,0.2665413,82.045,81.99,16.01103465]
[1772303829451,0.2665413,82.039,81.99,16.01103465]
[1772303829633,16.01103465,82.04,82.0,16.01103465]
[1772303829825,42.6574364,82.049,81.991,0.28432314]
[1772303830031,42.66263605,82.039,82.0,16.01103465]
[1772303830351,16.01103465,82.02,81.964,0.28432314]
[1772303830560,16.01103465,82.0,81.967,0.48838093]
[1772303831739,16.01103465,82.01,81.967,0.48838093]
[1772303831932,12.18932458,82.039,81.991,0.48838093]
[1772303832138,3.69383402,82.054,82.03,16.49941558]
[1772303832339,26.58229483,82.051,82.03,0.48838093]
[1772303832532,26.58229483,82.051,82.01,15.39924139]
[1772303832533,16.01103465,82.05,82.01,15.39924139]
[1772303832741,16.01103465,82.04,82.0,16.01103465]
[1772303833226,16.01103465,82.02,81.975,0.28432314]
[1772303833426,16.01103465,82.03,81.99,16.01103465]
[1772303833637,0.4669174,82.04,81.975,12.34100268]
[1772303833638,57.05114956,82.051,81.975,12.19884111]
[1772303833845,26.58229483,82.051,82.011,0.28432314]
[1772303834055,12.65475637,82.049,82.01,16.01103465]
[1772303834347,14.39466186,82.051,82.02,16.01103465]
[1772303834549,12.18769043,82.05,82.021,0.48838093]
[1772303834730,14.39466186,82.051,82.021,0.48838093]
[1772303835333,12.18769043,82.05,82.021,0.48838093]
[1772303835548,0.4669174,82.039,81.992,0.28432314]
[1772303835849,14.39466186,82.051,82.03,16.01103465]
[1772303836435,14.39466186,82.051,82.018,0.28432314]
[1772303836641,12.18769043,82.05,82.021,0.28432314]
[1772303836855,12.18769043,82.05,82.03,16.01103465]
[1772303837055,10.95910847,82.051,82.03,16.01103465]
[1772303837357,16.01103465,82.04,82.004,12.19452709]
[1772303837560,0.5,82.039,82.002,12.19482451]
[1772303837762,0.5,82.039,82.001,1.21949732]
[1772303838267,42.65691651,82.05,81.981,1.21979483]
[1772303838268,0.5,82.028,81.981,1.21979483]
[1772303838464,16.01103465,82.02,81.981,1.21979483]
[1772303838643,0.5,82.019,81.981,1.21979483]
[1772303838845,48.75076173,82.05,82.01,16.01103465]
[1772303838846,12.18769043,82.05,82.01,16.01103465]
[1772303839047,0.5,82.086,82.04,16.01103465]
[1772303839244,0.46778335,82.079,82.042,0.48672416]
[1772303839568,16.478818,82.06,82.021,0.48672416]
[1772303839769,16.01103465,82.05,82.021,0.48672416]
[1772303840271,16.01103465,82.08,82.021,0.48672416]
[1772303840272,12.18783897,82.049,82.021,0.48672416]
[1772303840470,12.1833843,82.079,82.041,0.48672416]
[1772303840671,42.64184505,82.079,82.031,0.48672416]
[1772303840857,16.478818,82.1,82.061,0.48672416]
[1772303841061,0.46778335,82.089,82.027,0.28432314]
[1772303841250,0.46778335,82.08,82.041,0.48672416]
[1772303841450,16.478818,82.08,82.041,0.48672416]
[1772303841664,298.3148256,82.128,82.061,0.48672416]
[1772303841665,16.01103465,82.1,82.061,0.48672416]
[1772303841968,0.46778335,82.099,82.059,0.48672416]
[1772303842169,0.46778335,82.099,82.031,1.21905133]
[1772303842170,42.63716986,82.088,82.051,0.48672416]
[1772303842353,42.63716986,82.088,82.061,0.48672416]
[1772303842548,12.18204853,82.088,82.06,15.88737699]
[1772303842770,12.18204853,82.088,82.05,16.01103465]
[1772303843065,12.18204853,82.088,82.021,1.21919996]
[1772303843066,16.01103465,82.06,82.021,1.21919996]
[1772303843266,0.46778335,82.069,82.03,16.01103465]
[1772303843470,0.46778335,82.069,82.022,12.19185096]
[1772303843668,0.46778335,82.049,82.02,2.29876951]
[1772303843867,16.01103465,82.07,82.03,16.01103465]
[1772303844168,30.45119016,82.099,82.032,17.83554975]
[1772303844361,0.46778335,82.089,82.04,16.01103465]
[1772303844558,0.46778335,82.089,82.06,16.01103465]
[1772303844759,0.46778335,82.089,82.048,1.21879875]
[1772303845063,16.01103465,82.07,82.033,1.21902161]
[1772303845265,0.46778335,82.097,82.06,16.01103465]
[1772303845458,0.46778335,82.089,82.05,16.01103465]
[1772303845659,0.46778335,82.089,82.051,0.48672416]
[1772303845868,16.01103465,82.08,82.04,16.01103465]
[1772303846069,30.45119016,82.099,82.038,0.48672416]
[1772303846070,16.01103465,82.07,82.038,0.48672416]
[1772303846373,0.46778335,82.068,82.03,0.48672416]
[1772303846557,0.46778335,82.066,82.03,16.01103465]
[1772303846759,16.01103465,82.05,82.011,0.48672416]
[1772303846952,16.01103465,82.05,82.01,28.20466957]
[1772303846953,1.21917023,82.068,82.021,0.48672416]
[1772303847154,0.46778335,82.067,82.03,16.01103465]
[1772303847569,1.21917023,82.068,82.031,0.48672416]
[1772303847767,16.478818,82.09,82.05,16.01103465]
[1772303848174,0.46778335,82.089,82.048,0.48672416]
[1772303848388,0.46778335,82.079,82.04,16.01103465]
[1772303849051,3.69383402,82.121,82.071,0.48672416]
[1772303849052,0.46778335,82.112,82.071,0.48672416]
[1772303849256,0.46778335,82.109,82.071,0.48672416]
[1772303850177,60.59579907,82.16,82.041,1.21890274]
[1772303850178,12.17411172,82.142,82.103,0.48672416]
[1772303850482,16.01103465,82.15,82.115,0.48672416]
[1772303850675,0.46778335,82.149,82.11,16.01103465]
[1772303850877,42.60187934,82.156,82.12,16.01103465]
[1772303851083,0.46778335,82.184,82.141,0.48672416]